[Event "28th Bosnjaci Open 2024"]
[Site "Bosnjaci"]
[Date "2024.01.06"]
[Round "5.18"]
[White "Vidovic, Sasa"]
[Black "Grgantov, Marin"]
[Result "0-1"]
[ECO "A03"]
[WhiteElo "2176"]
[BlackElo "1973"]
[Annotator "RC"]
[PlyCount "78"]
[EventDate "2024.01.02"]
[EventType "swiss"]
[EventCountry "CRO"]
[SourceTitle "playchess.com"]
[Source "ChessBase"]
[SourceQuality "1"]
[TimeControl "5400+30"]

1. b3 {[%emt 0:00:03]} b6 {[%emt 0:01:40]} 2. Bb2 {[%emt 0:00:06]} Bb7 {[%emt 0:00:05]} 3. e3 {[%emt 0:00:05]} e6 {[%emt 0:00:50]} 4. f4 {[%emt 0:00:17]} Nf6 {[%emt 0:02:07]} 5. Nf3 {[%emt 0:01:16]} d5 {[%emt 0:00:28]} 6. Bb5+ {[%emt 0:03:01]} c6 {[%emt 0:03:18]} 7. Bd3 {[%emt 0:09:15]} Bd6 {[%emt 0:01:01]} 8. O-O {[%emt 0:02:34]} Nbd7 {[%emt 0:03:48]} 9. Qe1 {[%emt 0:08:46]} O-O {[%emt 0:31:23]} 10. Qg3 {[%emt 0:05:30]} g6 {[%emt 0:02:16]} 11. Qh3 {[%emt 0:12:51]} Qe7 {[%emt 0:03:59]} 12. Ng5 {[%emt 0:15:56]} e5 {[%emt 0:10:57]} 13. Nc3 {[%emt 0:15:41]} Bc8 {[%emt 0:03:00]} 14. Qh6 {[%emt 0:02:52]} Re8 {[%emt 0:03:09]} 15. fxe5 {[%emt 0:02:21]} Bxe5 {[%emt 0:04:05]} 16. Na4 {[%emt 0:03:15]} Nf8 {[%emt 0:02:27]} 17. h3 {[%emt 0:06:23]} Bxb2 {[%emt 0:03:28]} 18. Nxb2 {[%emt 0:00:06]} Qe5 {[%emt 0:00:53]} 19. c3 {[%emt 0:01:48]} Re7 {[%emt 0:01:01]} 20. Rf2 {[%emt 0:01:09]} Ne6 {[%emt 0:03:15]} 21. Nxe6 {[%emt 0:01:55]} Bxe6 {[%emt 0:17:50]} 22. Raf1 {[%emt 0:01:40]} Ne4 {[%emt 0:00:00]} 23. Bxe4 {[%emt 0:00:28]} dxe4 {[%emt 0:00:00]} 24. Qh4 {[%emt 0:00:53]} Rd7 {[%emt 0:00:00]} 25. Nc4 {[%emt 0:00:15]} Bxc4 {[%emt 0:00:00]} 26. bxc4 {[%emt 0:00:08]} Re8 {[%emt 0:00:00]} 27. Rf6 {[%emt 0:01:29]} Re6 {[%emt 0:00:00]} 28. R6f4 {[%emt 0:00:55]} Ree7 {[%emt 0:00:00]} 29. R1f2 {[%emt 0:00:56]} Qe6 {[%emt 0:00:00]} 30. c5 {[%emt 0:00:30]} Qxa2 {[%emt 0:00:00]} 31. cxb6 {[%emt 0:00:05]} axb6 {[%emt 0:00:00]} 32. d4 {[%emt 0:01:27]} Qb1+ {[%emt 0:00:00]} 33. Kh2 {[%emt 0:00:27]} Qd3 {[%emt 0:00:00]} 34. Qg3 {[%emt 0:00:30]} Re8 {[%emt 0:00:00]} 35. h4 {[%emt 0:00:58]} Qxc3 {[%emt 0:00:00]} 36. h5 {[%emt 0:00:31]} Qa5 {[%emt 0:02:25]} 37. Rf5 {[%emt 0:02:38]} Rd5 {[%emt 0:00:38]} 38. Rxf7 {[%emt 0:00:00]} Rxh5+ {[%emt 0:00:05]} 39. Kg1 {[%emt 0:00:00]} Qe1+ {[%emt 0:00:03]} 0-1

[Event "28th Bosnjaci Open 2024"]
[Site "Bosnjaci"]
[Date "2024.01.06"]
[Round "5.19"]
[White "Jovic, Stevan"]
[Black "Nomindalai Tumurbaatar"]
[Result "1-0"]
[ECO "E98"]
[WhiteElo "1993"]
[BlackElo "2166"]
[Annotator "RC"]
[PlyCount "123"]
[EventDate "2024.01.02"]
[EventType "swiss"]
[EventCountry "CRO"]
[SourceTitle "playchess.com"]
[Source "ChessBase"]
[SourceQuality "1"]
[TimeControl "5400+30"]

1. d4 {[%emt 0:00:04]} Nf6 {[%emt 0:00:40]} 2. c4 {[%emt 0:00:20]} g6 {[%emt 0:00:26]} 3. Nc3 {[%emt 0:00:06]} Bg7 {[%emt 0:00:15]} 4. e4 {[%emt 0:00:05]} d6 {[%emt 0:00:09]} 5. Nf3 {[%emt 0:00:07]} O-O {[%emt 0:00:08]} 6. Be2 {[%emt 0:00:04]} e5 {[%emt 0:00:15]} 7. O-O {[%emt 0:00:06]} Nc6 {[%emt 0:00:05]} 8. d5 {[%emt 0:00:05]} Ne7 {[%emt 0:00:05]} 9. Ne1 {[%emt 0:00:06]} Nd7 {[%emt 0:00:40]} 10. Nd3 {[%emt 0:04:01]} f5 {[%emt 0:02:46]} 11. Bd2 {[%emt 0:00:06]} fxe4 {[%emt 0:05:39]} 12. Nxe4 {[%emt 0:00:10]} Nf6 {[%emt 0:00:15]} 13. Nxf6+ {[%emt 0:02:03]} Bxf6 {[%emt 0:00:22]} 14. Bg4 {[%emt 0:03:20]} Nf5 {[%emt 0:01:15]} 15. Bc3 {[%emt 0:00:54]} Bg7 {[%emt 0:01:21]} 16. Re1 {[%emt 0:00:53]} Qg5 {[%emt 0:16:48]} 17. Bd2 {[%emt 0:01:25]} Qf6 {[%emt 0:00:55]} 18. f3 {[%emt 0:01:16]} h5 {[%emt 0:01:58]} 19. Bh3 {[%emt 0:00:14]} g5 {[%emt 0:08:56]} 20. Nf2 {[%emt 0:03:35]} Bh6 {[%emt 0:05:47]} 21. Ne4 {[%emt 0:00:44]} Qg6 {[%emt 0:00:13]} 22. Bxf5 {[%emt 0:03:41]} Bxf5 {[%emt 0:00:06]} 23. Qc1 {[%emt 0:00:56]} Bxe4 {[%emt 0:04:29]} 24. Rxe4 {[%emt 0:00:13]} Kh7 {[%emt 0:02:03]} 25. h3 {[%emt 0:00:38]} Rf7 {[%emt 0:04:17]} 26. Be3 {[%emt 0:01:10]} Rg8 {[%emt 0:00:42]} 27. Qd2 {[%emt 0:01:39]} Qf6 {[%emt 0:01:41]} 28. Qe2 {[%emt 0:07:27]} g4 {[%emt 0:17:48]} 29. fxg4 {[%emt 0:02:13]} Bxe3+ {[%emt 0:01:13]} 30. Rxe3 {[%emt 0:00:51]} hxg4 {[%emt 0:02:32]} 31. hxg4 {[%emt 0:00:31]} Qf4 {[%emt 0:00:32]} 32. Rf3 {[%emt 0:00:36]} Qd4+ {[%emt 0:00:11]} 33. Qf2 {[%emt 0:00:32]} Rf4 {[%emt 0:11:43]} 34. Rxf4 {[%emt 0:00:41]} Qxf4 {[%emt 0:00:04]} 35. Qxf4 {[%emt 0:01:19]} exf4 {[%emt 0:00:04]} 36. Kf2 {[%emt 0:00:21]} Rxg4 {[%emt 0:00:15]} 37. b3 {[%emt 0:00:46]} Kg7 {[%emt 0:01:28]} 38. Re1 {[%emt 0:00:29]} Kf7 {[%emt 0:00:23]} 39. Re6 {[%emt 0:02:10]} b5 {[%emt 0:05:15]} 40. cxb5 {[%emt 0:00:47]} Rg5 {[%emt 0:00:28]} 41. Re4 {[%emt 0:00:14]} Rxd5 {[%emt 0:02:29]} 42. Rxf4+ {[%emt 0:00:36]} Kg6 {[%emt 0:02:33]} 43. a4 {[%emt 0:00:21]} Rd2+ {[%emt 0:00:16]} 44. Kf1 {[%emt 0:03:13]} d5 {[%emt 0:00:11]} 45. Rf3 {[%emt 0:01:22]} d4 {[%emt 0:00:41]} 46. g3 {[%emt 0:00:27]} Kg5 {[%emt 0:01:09]} 47. Ke1 {[%emt 0:00:13]} Rb2 {[%emt 0:01:25]} 48. Kd1 {[%emt 0:00:10]} Kg4 {[%emt 0:00:54]} 49. Rd3 {[%emt 0:00:07]} Kf5 {[%emt 0:00:09]} 50. Rxd4 {[%emt 0:01:35]} Rxb3 {[%emt 0:00:10]} 51. g4+ {[%emt 0:00:34]} Ke5 {[%emt 0:00:10]} 52. Kc2 {[%emt 0:00:19]} Rg3 {[%emt 0:01:36]} 53. Rc4 {[%emt 0:00:06]} Kd5 {[%emt 0:00:25]} 54. Rxc7 {[%emt 0:00:29]} Rxg4 {[%emt 0:00:03]} 55. Rxa7 {[%emt 0:00:09]} Kc5 {[%emt 0:00:15]} 56. Ra6 {[%emt 0:00:20]} Rg2+ {[%emt 0:00:40]} 57. Kd3 {[%emt 0:00:07]} Kd5 {[%emt 0:00:55]} 58. Kc3 {[%emt 0:00:33]} Rg4 {[%emt 0:00:32]} 59. Kb3 {[%emt 0:00:05]} Rh4 {[%emt 0:00:25]} 60. Rc6 {[%emt 0:00:08]} Rg4 {[%emt 0:00:43]} 61. Rc3 {[%emt 0:00:25]} Kd6 {[%emt 0:00:32]} 62. b6 {[%emt 0:00:08]} 1-0

[Event "28th Bosnjaci Open 2024"]
[Site "Bosnjaci"]
[Date "2024.01.06"]
[Round "5.20"]
[White "Tukovic, Dario"]
[Black "Tomic, Stjepan"]
[Result "1/2-1/2"]
[ECO "E21"]
[WhiteElo "2132"]
[BlackElo "1961"]
[Annotator "NA RC"]
[PlyCount "50"]
[EventDate "2024.01.02"]
[EventType "swiss"]
[EventCountry "CRO"]
[SourceTitle "playchess.com"]
[Source "ChessBase"]
[SourceQuality "1"]
[TimeControl "5400+30"]

1. d4 {[%emt 0:00:05]} Nf6 {[%emt 0:00:05]} 2. c4 {[%emt 0:00:11]} e6 {[%emt 0:00:04]} 3. Nc3 {[%emt 0:00:35]} Bb4 {[%emt 0:00:08]} 4. e3 {[%emt 0:00:59]} O-O {[%emt 0:00:10]} 5. Bd2 {[%emt 0:00:07]} b6 {[%emt 0:01:02]} 6. Nf3 {[%emt 0:00:27]} Bb7 {[%emt 0:00:37]} 7. Bd3 {[%emt 0:00:49]} d6 {[%emt 0:02:41]} 8. Qc2 {[%emt 0:15:07]} Nbd7 {[%emt 0:01:51]} 9. e4 {[%emt 0:04:42]} e5 {[%emt 0:00:24]} 10. d5 {[%emt 0:07:31]} Nc5 {[%emt 0:04:47]} 11. O-O {[%emt 0:06:32]} Bc8 {[%emt 0:04:40]} 12. g3 {[%emt 0:13:41]} Bh3 {[%emt 0:08:45]} 13. Rfe1 {[%emt 0:00:16]} Nxd3 {[%emt 0:00:06]} 14. Qxd3 {[%emt 0:00:14]} Bxc3 {[%emt 0:08:18]} 15. Qxc3 {[%emt 0:09:43]} Nd7 {[%emt 0:08:55]} 16. Ng5 {[%emt 0:10:51]} Bg4 {[%emt 0:00:09]} 17. h3 {[%emt 0:08:37]} Bh5 {[%emt 0:00:06]} 18. f4 {[%emt 0:01:54]} h6 {[%emt 0:03:00]} 19. Nf3 {[%emt 0:00:28]} Bxf3 {[%emt 0:01:14]} 20. Qxf3 {[%emt 0:00:04]} f5 {[%emt 0:00:49]} 21. exf5 {[%emt 0:02:06]} Rxf5 {[%emt 0:00:58]} 22. Qe4 {[%emt 0:06:12]} Rf7 {[%emt 0:03:37]} 23. Rf1 {[%emt 0:01:47]} Qe7 {[%emt 0:03:21]} 24. Rae1 {[%emt 0:01:58]} Raf8 {[%emt 0:01:40]} 25. b4 {[%emt 0:01:12]} Qd8 {[%emt 0:03:39]} 1/2-1/2

[Event "28th Bosnjaci Open 2024"]
[Site "Bosnjaci"]
[Date "2024.01.06"]
[Round "6.1"]
[White "Culum, Sanjin"]
[Black "Saric, Ante"]
[Result "0-1"]
[ECO "B40"]
[WhiteElo "2349"]
[BlackElo "2508"]
[Annotator "TA"]
[PlyCount "124"]
[EventDate "2024.01.02"]
[EventType "swiss"]
[EventCountry "CRO"]
[SourceTitle "playchess.com"]
[Source "ChessBase"]
[SourceQuality "1"]
[TimeControl "5400+30"]

{[%evp 15,124,0,0,4,2,-12,-2,-10,-6,-12,0,0,6,-11,0,-27,-22,-36,-22,-14,-13,-21,-28,-22,0,0,0,0,0,0,-8,-38,-6,-14,0,-41,-38,-38,-22,-26,-36,-41,-31,-35,-14,-48,-5,-2,9,-33,-28,-115,0,-41,0,-110,-70,-70,-70,-70,-70,-70,-70,-70,-70,-70,-70,-97,-70,-70,-70,-70,-70,-29962,-29962,-29962,-29964,-29958,-29957,-29954,-29955,-29959,-29960,-29958,-29962,-29962,-10148,-29964,-29967,-29966,-29969,-5547,-2781,-29971,-29970,-29964,-29958,-11988,-7545,-2845,-1465,-29979,-29980,-29980,-29981,-29981,-29982,-29982,-29982,-29982,-29983]} 1. e4 {[%emt 0:00:03]} c5 {[%emt 0:00:07]} 2. Nf3 {[%emt 0:00:07]} e6 {[%emt 0:00:05]} 3. d4 {[%emt 0:01:04]} cxd4 {[%emt 0:00:06]} 4. Nxd4 {[%emt 0:00:05]} Nf6 {[%emt 0:00:14]} 5. Bd3 {[%emt 0:01:23]} Nc6 {[%emt 0:02:03]} 6. Nxc6 {[%emt 0:02:05]} bxc6 {[%emt 0:02:07]} 7. c4 {[%emt 0:03:57]} e5 $1 {[%emt 0:02:18][%mdl 4] is currently scoring better than 7...d5.} 8. O-O {[%emt 0:05:31]} Bc5 {[%emt 0:05:31]} 9. Qe2 {[%emt 0:04:48] B40: Sicilian: 2...e6, Unusual lines.} d6 {[%emt 0:02:55]} 10. h3 {[%emt 0:06:53]} Be6 {[%emt 0:03:35]} 11. Nc3 {[%emt 0:02:31] [#] The position is equal.} Nd7 $146 {[%emt 0:13:22]} ({Predecessor:} 11... g6 12. Be3 Nh5 13. Rad1 Bxe3 14. Qxe3 Nf4 15. Ne2 Qg5 16. Nxf4 exf4 17. Qf3 h5 {0-1 De Santana,J (1841)-Starke,B (2163) BRA-ch U26 Cuiaba 2016 (4)}) 12. Rb1 {[%emt 0:07:28]} h6 {[%emt 0:10:00]} 13. b4 {[%emt 0:11:49]} Bd4 {[%emt 0:00:48]} 14. Qc2 {[%emt 0:00:04]} a5 {[%emt 0:02:12]} 15. a3 {[%emt 0:01:42]} axb4 {[%emt 0:00:33]} 16. axb4 {[%emt 0:00:17]} O-O {[%emt 0:06:12]} 17. Ne2 {[%emt 0:01:32]} Bb6 {[%emt 0:01:35]} 18. Kh2 {[%emt 0:07:02]} Qe7 {[%emt 0:04:12]} 19. Bb2 {[%emt 0:13:16]} f6 {[%emt 0:09:36]} 20. Ng3 {[%emt 0:01:42]} g6 {[%emt 0:03:36] Against Nf5} 21. Ra1 {[%emt 0:02:15]} h5 {[%emt 0:01:10]} 22. Rxa8 {[%emt 0:01:21]} Rxa8 {[%emt 0:00:09]} 23. Ra1 {[%emt 0:00:24]} Qd8 {[%emt 0:03:38]} 24. Rd1 {[%emt 0:07:41]} Qe7 {[%emt 0:02:37]} 25. Ra1 {[%emt 0:00:31]} Rxa1 {[%emt 0:00:57]} 26. Bxa1 {[%emt 0:00:05]} Nb8 {[%emt 0:00:25]} 27. Bc3 {[%emt 0:05:47]} Qa7 {[%emt 0:00:54]} 28. Kg1 {[%emt 0:00:06]} h4 {[%emt 0:02:42]} 29. Nf1 {[%emt 0:00:08]} g5 {[%emt 0:00:42]} 30. Qd2 {[%emt 0:01:12]} Kf7 {[%emt 0:01:38]} 31. Ne3 {[%emt 0:01:17]} Ke7 {[%emt 0:03:00]} 32. Qe2 {[%emt 0:03:26][%cal Oc4c5]} Qa3 {[%emt 0:01:20]} 33. Qb2 {[%emt 0:00:23]} (33. Bd2 $11) 33... Qa7 {[%emt 0:01:21]} ({Black should play} 33... Qxb2 $17 34. Bxb2 Nd7) 34. Qe2 $15 {[%emt 0:00:07][%cal Oc4c5]} Nd7 {[%emt 0:00:29]} 35. Kf1 {[%emt 0:05:26]} (35. c5 $11 {keeps the balance.} dxc5 36. Bc4 cxb4 37. Bxb4+ Bc5 38. Bxe6 Bxb4 39. Bf5 (39. Qc4 Qc5 $11)) 35... Qa3 {[%emt 0:02:13]} 36. Qb2 {[%emt 0:00:13]} Qxb2 {[%emt 0:02:11]} 37. Bxb2 {[%emt 0:00:04]} Bxe3 {[%emt 0:00:10]} 38. fxe3 {[%emt 0:00:04][%cal Oc4c5][%mdl 4096] Endgame KBB-KBN} c5 {[%emt 0:00:40]} 39. Ba3 {[%emt 0:00:58]} cxb4 {[%emt 0:01:27]} 40. Bxb4 {[%emt 0:00:04]} Nc5 {[%emt 0:00:04]} 41. Ke2 {[%emt 0:00:29]} Bc8 {[%emt 0:05:48] Black is more active.} 42. Bxc5 {[%emt 0:04:34]} dxc5 {[%emt 0:00:02] KB-KB} 43. Kf3 {[%emt 0:00:00]} Kd6 {[%emt 0:01:36]} 44. g4 $2 {[%emt 0:00:58][%mdl 8192] [#] Loses the game.} (44. Ke2 $15) 44... Kc7 {[%emt 0:00:54]} 45. Ke2 {[%emt 0:00:04]} Kb6 {[%emt 0:00:07]} 46. Kd2 {[%emt 0:00:03]} Ka5 {[%emt 0:00:05]} 47. Kc3 {[%emt 0:00:07]} Ka4 {[%emt 0:00:08]} 48. Be2 {[%emt 0:01:08]} Ka3 {[%emt 0:00:28]} 49. Bf3 {[%emt 0:01:21]} Bb7 {[%emt 0:00:11]} 50. Bg2 {[%emt 0:00:04]} Ka2 {[%emt 0:00:12]} 51. Kc2 {[%emt 0:00:34]} Bc6 {[%emt 0:00:16]} 52. Bf3 {[%emt 0:00:53]} Ba4+ {[%emt 0:00:09]} 53. Kc3 {[%emt 0:00:04]} Kb1 {[%emt 0:00:40] [#] ( -> ...Bc2)} 54. Kd2 {[%emt 0:01:36]} Kb2 {[%emt 0:00:38]} 55. Be2 {[%emt 0:00:02]} Bb3 {[%emt 0:00:44]} 56. Bd3 {[%emt 0:00:17]} Ba2 {[%emt 0:00:14]} 57. Be2 {[%emt 0:00:45]} Bb1 {[%emt 0:02:46]} 58. Bd3 {[%emt 0:00:38]} Bxd3 {[%emt 0:02:06] Black mates.} 59. Kxd3 {[%emt 0:00:01]} Kc1 {[%emt 0:00:07]} 60. Kc3 {[%emt 0:00:05]} Kd1 {[%emt 0:00:08]} 61. Kb3 {[%emt 0:00:03]} Ke2 {[%emt 0:00:40]} 62. Ka4 {[%emt 0:00:05]} Kxe3 {[%emt 0:00:28] Weighted Error Value: White=0.51/Black=0.08 (flawless)} 0-1

[Event "28th Bosnjaci Open 2024"]
[Site "Bosnjaci"]
[Date "2024.01.06"]
[Round "6.2"]
[White "Zaja, Ivan"]
[Black "Plenkovic, Zdenko"]
[Result "1/2-1/2"]
[ECO "A65"]
[WhiteElo "2419"]
[BlackElo "2335"]
[Annotator "RC"]
[PlyCount "118"]
[EventDate "2024.01.02"]
[EventType "swiss"]
[EventCountry "CRO"]
[SourceTitle "playchess.com"]
[Source "ChessBase"]
[SourceQuality "1"]
[TimeControl "5400+30"]

1. d4 {[%emt 0:00:02]} Nf6 {[%emt 0:00:05]} 2. c4 {[%emt 0:00:02]} g6 {[%emt 0:00:06]} 3. Nc3 {[%emt 0:00:04]} Bg7 {[%emt 0:00:04]} 4. e4 {[%emt 0:00:03]} d6 {[%emt 0:00:03]} 5. f3 {[%emt 0:00:03]} O-O {[%emt 0:00:06]} 6. Be3 {[%emt 0:00:04]} c5 {[%emt 0:00:03]} 7. Nge2 {[%emt 0:00:04]} Nc6 {[%emt 0:00:05]} 8. d5 {[%emt 0:00:04]} Ne5 {[%emt 0:00:04]} 9. Ng3 {[%emt 0:00:21]} e6 {[%emt 1:34:24]} 10. Be2 {[%emt 0:00:30]} exd5 {[%emt 0:00:00]} 11. cxd5 {[%emt 0:00:05]} a6 {[%emt 0:00:00]} 12. a4 {[%emt 0:00:05]} Bd7 {[%emt 0:00:00]} 13. O-O {[%emt 0:15:11]} b5 {[%emt 0:00:00]} 14. h3 {[%emt 0:02:38]} b4 {[%emt 0:00:00]} 15. Nb1 {[%emt 0:00:42]} c4 {[%emt 0:00:00]} 16. f4 {[%emt 0:00:46]} Nd3 {[%emt 0:00:00]} 17. Bxd3 {[%emt 0:00:21]} cxd3 {[%emt 0:00:00]} 18. Qxd3 {[%emt 0:00:14]} Qe8 {[%emt 0:00:00]} 19. Nd2 {[%emt 0:08:58]} Bxa4 {[%emt 0:00:00]} 20. Rfe1 {[%emt 0:02:19]} Bb5 {[%emt 0:00:00]} 21. Qb3 {[%emt 0:01:16]} a5 {[%emt 0:00:00]} 22. Bd4 {[%emt 0:05:12]} Qb8 {[%emt 0:00:00]} 23. e5 {[%emt 0:09:39]} Nd7 {[%emt 0:00:00]} 24. Qe3 {[%emt 0:02:07]} dxe5 {[%emt 0:00:00]} 25. fxe5 {[%emt 0:00:19]} Re8 {[%emt 0:00:00]} 26. e6 {[%emt 0:22:21]} Bxd4 {[%emt 0:00:00]} 27. Qxd4 {[%emt 0:00:02]} fxe6 {[%emt 0:00:00]} 28. dxe6 {[%emt 0:08:45]} Qxg3 {[%emt 0:00:00]} 29. Qd5 {[%emt 0:00:49]} Qd3 {[%emt 0:00:00]} 30. Qxd3 {[%emt 0:00:37]} Bxd3 {[%emt 0:00:00]} 31. exd7 {[%emt 0:00:08]} Red8 {[%emt 0:00:00]} 32. Rxa5 {[%emt 0:01:01]} Rxa5 {[%emt 0:00:00]} 33. Re8+ {[%emt 0:00:07]} Kf7 {[%emt 0:00:00]} 34. Rxd8 {[%emt 0:00:03]} Ke7 {[%emt 0:00:00]} 35. Rb8 {[%emt 0:00:34]} Kxd7 {[%emt 0:00:00]} 36. Rxb4 {[%emt 0:00:07]} Kc6 {[%emt 0:00:00]} 37. Rd4 {[%emt 0:00:54]} Bb5 {[%emt 0:00:00]} 38. Kf2 {[%emt 0:02:09]} Ra2 {[%emt 0:00:00]} 39. b4 {[%emt 0:00:43]} Ra3 {[%emt 0:00:00]} 40. Nf3 {[%emt 0:02:33]} Ra2+ {[%emt 0:00:00]} 41. Rd2 {[%emt 0:01:01]} Rxd2+ {[%emt 0:00:00]} 42. Nxd2 {[%emt 0:00:01]} Kd5 {[%emt 0:00:00]} 43. Ke3 {[%emt 0:00:19]} Bc6 {[%emt 0:01:13]} 44. Nf3 {[%emt 0:01:48]} Bb7 {[%emt 0:01:28]} 45. Kf4 {[%emt 0:03:35]} h6 {[%emt 0:03:58]} 46. Ne5 {[%emt 0:04:35]} g5+ {[%emt 0:03:47]} 47. Kf5 {[%emt 0:00:02]} h5 {[%emt 0:00:33]} 48. Ng6 {[%emt 0:08:14]} Kc4 {[%emt 0:03:32]} 49. Kxg5 {[%emt 0:00:36]} Bxg2 {[%emt 0:00:09]} 50. h4 {[%emt 0:00:12]} Kxb4 {[%emt 0:00:04]} 51. Kxh5 {[%emt 0:00:22]} Bf3+ {[%emt 0:00:11]} 52. Kg5 {[%emt 0:00:07]} Kc5 {[%emt 0:00:31]} 53. Ne5 {[%emt 0:00:42]} Be2 {[%emt 0:00:15]} 54. Ng4 {[%emt 0:00:31]} Bxg4 {[%emt 0:00:43]} 55. Kxg4 {[%emt 0:00:01]} Kd6 {[%emt 0:00:06]} 56. h5 {[%emt 0:00:04]} Ke6 {[%emt 0:00:06]} 57. h6 {[%emt 0:00:02]} Kf7 {[%emt 0:00:05]} 58. h7 {[%emt 0:00:01]} Kg7 {[%emt 0:00:05]} 59. h8=B+ {[%emt 0:00:03]} Kxh8 {[%emt 0:00:05]} 1/2-1/2

[Event "28th Bosnjaci Open 2024"]
[Site "Bosnjaci"]
[Date "2024.01.06"]
[Round "6.3"]
[White "Markovic, Franjo-Josip"]
[Black "Fercec, Nenad"]
[Result "0-1"]
[ECO "A50"]
[WhiteElo "2194"]
[BlackElo "2410"]
[Annotator "RC"]
[PlyCount "102"]
[EventDate "2024.01.02"]
[EventType "swiss"]
[EventCountry "CRO"]
[SourceTitle "playchess.com"]
[Source "ChessBase"]
[SourceQuality "1"]
[TimeControl "5400+30"]

1. d4 {[%emt 0:00:07]} Nf6 {[%emt 0:00:07]} 2. Nf3 {[%emt 0:00:13]} b6 {[%emt 0:00:15]} 3. c4 {[%emt 0:00:38]} Bb7 {[%emt 0:00:16]} 4. g3 {[%emt 0:02:25]} g6 {[%emt 0:01:14]} 5. Bg2 {[%emt 0:00:21]} Bg7 {[%emt 0:00:08]} 6. O-O {[%emt 0:00:38]} O-O {[%emt 0:00:21]} 7. Nc3 {[%emt 0:04:25]} Ne4 {[%emt 0:02:15]} 8. Bd2 {[%emt 0:08:37]} Nxd2 {[%emt 0:03:11]} 9. Qxd2 {[%emt 0:00:08]} c5 {[%emt 0:02:39]} 10. d5 {[%emt 0:00:40]} d6 {[%emt 0:01:36]} 11. Ne1 {[%emt 0:07:30]} a6 {[%emt 0:02:58]} 12. a4 {[%emt 0:01:19]} Nd7 {[%emt 0:00:16]} 13. f4 {[%emt 0:00:40]} b5 {[%emt 0:05:32]} 14. axb5 {[%emt 0:01:10]} Nb6 {[%emt 0:00:18]} 15. b3 {[%emt 0:03:36]} Bxc3 {[%emt 0:02:11]} 16. Qxc3 {[%emt 0:00:08]} axb5 {[%emt 0:00:05]} 17. Nc2 {[%emt 0:03:54]} Qd7 {[%emt 0:03:32]} 18. e4 {[%emt 0:03:06]} bxc4 {[%emt 0:01:54]} 19. bxc4 {[%emt 0:00:16]} Na4 {[%emt 0:00:15]} 20. Qd2 {[%emt 0:03:40]} e6 {[%emt 0:08:11]} 21. f5 {[%emt 0:09:15]} exf5 {[%emt 0:01:37]} 22. exf5 {[%emt 0:01:12]} f6 {[%emt 0:00:04]} 23. fxg6 {[%emt 0:02:08]} hxg6 {[%emt 0:00:07]} 24. Qh6 {[%emt 0:04:45]} Qg7 {[%emt 0:00:24]} 25. Qf4 {[%emt 0:04:41]} Ra6 {[%emt 0:00:58]} 26. Ra3 {[%emt 0:03:15]} Bc8 {[%emt 0:00:47]} 27. Ne3 {[%emt 0:05:51]} f5 {[%emt 0:01:29]} 28. Qg5 {[%emt 0:00:33]} Nc3 {[%emt 0:02:23]} 29. Rxa6 {[%emt 0:01:02]} Bxa6 {[%emt 0:00:07]} 30. Kh1 {[%emt 0:00:48]} Qf6 {[%emt 0:12:34]} 31. Qxf6 {[%emt 0:07:01]} Rxf6 {[%emt 0:00:36]} 32. Rc1 {[%emt 0:00:53]} Na2 {[%emt 0:00:40]} 33. Rf1 {[%emt 0:01:03]} Rf8 {[%emt 0:00:37]} 34. h4 {[%emt 0:02:20]} Re8 {[%emt 0:01:52]} 35. Rf3 {[%emt 0:00:20]} Nc1 {[%emt 0:06:08]} 36. h5 {[%emt 0:02:01]} Ne2 {[%emt 0:05:20]} 37. hxg6 {[%emt 0:06:23]} Nd4 {[%emt 0:02:10]} 38. Nxf5 {[%emt 0:00:11]} Nxf3 {[%emt 0:00:06]} 39. Bxf3 {[%emt 0:00:10]} Bxc4 {[%emt 0:00:27]} 40. Nxd6 {[%emt 0:00:26]} Re1+ {[%emt 0:00:32]} 41. Kg2 {[%emt 0:00:53]} Rc1 {[%emt 0:19:48]} 42. Nxc4 {[%emt 0:02:44]} Rxc4 {[%emt 0:01:02]} 43. Kf2 {[%emt 0:00:58]} Kg7 {[%emt 0:00:20]} 44. Ke3 {[%emt 0:00:41]} Kxg6 {[%emt 0:00:28]} 45. Be4+ {[%emt 0:01:03]} Kg5 {[%emt 0:00:50]} 46. Bf3 {[%emt 0:03:27]} Rd4 {[%emt 0:00:48]} 47. Ke2 {[%emt 0:02:08]} c4 {[%emt 0:04:53]} 48. Ke1 {[%emt 0:03:11]} c3 {[%emt 0:00:36]} 49. Bd1 {[%emt 0:00:05]} Rxd5 {[%emt 0:00:13]} 50. Bb3 {[%emt 0:00:21]} Rd4 {[%emt 0:00:46]} 51. Bd1 {[%emt 0:00:23]} Rd6 {[%emt 0:00:03]} 0-1

[Event "28th Bosnjaci Open 2024"]
[Site "Bosnjaci"]
[Date "2024.01.06"]
[Round "6.4"]
[White "Kovacevic, Blazimir"]
[Black "Alimpic, Aleksa"]
[Result "1/2-1/2"]
[ECO "D02"]
[WhiteElo "2381"]
[BlackElo "2282"]
[Annotator "ChessBase"]
[PlyCount "51"]
[EventDate "2024.01.02"]
[EventType "swiss"]
[EventCountry "CRO"]
[SourceTitle "playchess.com"]
[Source "ChessBase"]
[SourceQuality "1"]
[TimeControl "5400+30"]

1. Nf3 {[%emt 0:00:03]} d5 {[%emt 0:00:08]} 2. g3 {[%emt 0:00:10]} Nc6 {[%emt 0:00:16]} 3. d4 {[%emt 0:00:10]} Bf5 {[%emt 0:00:09]} 4. Bg2 {[%emt 0:00:24]} Nb4 {[%emt 0:00:16]} 5. Na3 {[%emt 0:00:07]} e6 {[%emt 0:00:15]} 6. O-O {[%emt 0:00:18]} Be7 {[%emt 0:00:21]} 7. Ne5 {[%emt 0:04:58]} f6 {[%emt 0:02:00]} 8. Nf3 {[%emt 0:05:29]} Nc6 {[%emt 0:00:55]} 9. b3 {[%emt 0:03:30]} Qd7 {[%emt 0:02:46]} 10. c4 {[%emt 0:10:14]} O-O-O {[%emt 0:02:53]} 11. Nc2 {[%emt 0:01:26]} g5 {[%emt 0:03:41]} 12. Ne3 {[%emt 0:07:50]} Be4 {[%emt 0:02:45]} 13. Bh3 {[%emt 0:04:21]} f5 {[%emt 0:03:53]} 14. cxd5 {[%emt 0:00:57]} exd5 {[%emt 0:00:12]} 15. Nxg5 {[%emt 0:09:00]} Bxg5 {[%emt 0:06:02]} 16. f3 {[%emt 0:00:06]} Nge7 {[%emt 0:03:41]} 17. fxe4 {[%emt 0:00:14]} Bxe3+ {[%emt 0:00:05]} 18. Bxe3 {[%emt 0:00:08]} dxe4 {[%emt 0:00:05]} 19. Qe1 {[%emt 0:09:09]} h5 {[%emt 0:05:42]} 20. Rd1 {[%emt 0:04:36]} Qe6 {[%emt 0:09:14]} 21. Qf2 {[%emt 0:03:18]} Rd5 {[%emt 0:00:49]} 22. Rc1 {[%emt 0:02:05]} Rf8 {[%emt 0:02:36]} 23. Rc4 {[%emt 0:10:44]} Kb8 {[%emt 0:04:11]} 24. Rfc1 {[%emt 0:01:01]} Rd7 {[%emt 0:02:45]} 25. Rf1 {[%emt 0:05:40]} Rd5 {[%emt 0:00:36]} 26. Rfc1 {[%emt 0:01:55]} 1/2-1/2